Cogmind - Beta 13 @@@ ROGUE MODE // 2024.07.24 @ 13:05:24 Player: jagoly Result: Destroyed by QY-SUO(R) with Subdweller Shrapnel Launcher Performance ------------- Evolutions (0) 0 Regions Visited (2) 400 Robots Destroyed (13) 65 Value Destroyed (435) 435 Prototype IDs (0) 0 Alien Tech Used (0) 0 Bonus (-18) -18 TOTAL SCORE: 882 Bonus ------- Friendly Fire -18 Cogmind --------- Core Integrity 0/250 Matter 274/300 Energy 200/200 System Corruption 0% Temperature Cool (0) Movement Treading (240) Ox1 Location -10/Subcaves Parts ------- > --- POWER (1) -------- Subdweller Power Source > --- PROPULSION (2) --- Light Treads > --- UTILITY (2) ------ Disposable Heat Sink Large Storage Unit > --- WEAPON (2) ------- Subdweller Laser Subdweller Machine Gun > --- INVENTORY (15) --- Ion Engine Subdweller Power Source Makeshift Power Source Light Treads Subdweller Monowheel Subdweller Monowheel Large Storage Unit Sensor Array Scrap Shield Grenade Launcher Hammer Scrap Shield Fragment (49) Scrap Shield Fragment (42) Peak State ------------ > --- POWER ------------ Subdweller Power Source > --- PROPULSION ------- Light Treads Subdweller Monowheel > --- UTILITY ---------- Disposable Heat Sink Large Storage Unit > --- WEAPON ----------- Subdweller Laser Subdweller Machine Gun > --- INVENTORY -------- Ion Engine Light Treads Light Treads Large Storage Unit Sensor Array Scrap Shield Light Assault Rifle Grenade Launcher Hammer [Rating: 13] Favorites ----------- Power Ion Engine Engine Ion Engine Power Core Light Nuclear Core Propulsion Aluminum Leg Treads Light Treads Leg Aluminum Leg Wheel Subdweller Monowheel Utility Large Storage Unit Device Disposable Heat Sink Storage Large Storage Unit Protection Light Armor Plating Weapon Light Assault Rifle Energy Gun Subdweller Laser Energy Cannon Beam Cannon Ballistic Gun Light Assault Rifle Impact Weapon Hammer Build | -11 -10 -10 ------- Run | Yrd Mat Sub Slots Evolved . | . . . Power . | . . . Propulsion . | . . . Utility . | . . . Weapon . | . . . Parts Attached 30 | 6 14 10 Power 5 | 1 3 1 Engine 4 | 1 2 1 Core 1 | . 1 . Reactor . | . . . Propulsion 10 | 2 6 2 Treads 3 | . 2 1 Leg 6 | 2 4 . Wheel 1 | . . 1 Hover . | . . . Flight . | . . . Utility 6 | 1 4 1 Device 2 | . 1 1 Storage 3 | 1 2 . Processor . | . . . Hackware . | . . . Protection 1 | . 1 . Artifact . | . . . Weapon 9 | 2 1 6 Energy Gun 2 | . . 2 Energy Cannon 1 | . 1 . Ballistic Gun 5 | 2 . 3 Ballistic Cannon . | . . . Launcher . | . . . Special Weapon . | . . . Impact Weapon 1 | . . 1 Slashing Weapon . | . . . Piercing Weapon . | . . . Special Melee Weapon . | . . . Unidentified Prototypes . | . . . Parts Lost 9 | . 2 7 Power 2 | . 1 1 Propulsion 2 | . . 2 Utility 2 | . 1 1 Weapon 3 | . . 3 Highest Loss Streak 5 | . 1 5 To Critical Strikes . | . . . Average Slot Usage (%) 94 | . 93 94 Engine 11 | . 9 13 Core 1 | . 2 . Treads 14 | . 6 26 Leg 13 | . 21 . Device 6 | . 3 12 Storage 14 | . 14 14 Protection 4 | . 7 . Energy Cannon 2 | . 2 1 Ballistic Gun 23 | . 24 21 Naked Turns . | . . . Heaviest Build 34 | 10 30 34 Greatest Support 40 | 20 40 40 Greatest Overweight (x) 1 | . . 1 Average Overweight (x) . | . . . Largest Inventory Capacity 15 | 8 15 15 Average Capacity 11 | 7 10 15 Most Carried 15 | 3 10 15 Average Carried 9 | 2 7 12 Final Capacity 15 | 8 15 15 Final Carried 14 | 3 8 14 Class Distribution -------------------- 54% | Mutant 45% | Scavenger-Mutant Dominant Class ---------------- Mutant | -10/Materials Scavenger-Mutant | -10/Subcaves Resources | -11 -10 -10 ----------- Run | Yrd Mat Sub Matter Collected 620 | 212 282 126 Remotely . | . . . Salvage Created 515 | . 353 162 Parts 37 | . 19 18 Haulers Intercepted 1 | . 1 . Recyclers Shooed . | . . . Parts Field Recycled . | . . . Retrieved Matter . | . . . Parts Self-Destructed 2 | . . 2 Prevented . | . . . Kills | -11 -10 -10 ------- Run | Yrd Mat Sub Combat Hostiles Destroyed 11 | . 6 5 Guns 10 | . 6 4 Cannons 1 | . . 1 Classes Destroyed 4 | . 3 1 Hauler 1 | . 1 . Watcher 1 | . 1 . Grunt 6 | . 6 . Subdweller 5 | . . 5 Best Kill Streak 3 | . 3 2 Combat Bots Only 2 | . 2 2 Max Kills in Single Turn 1 | . 1 1 Gunslinging . | . . . Exploded . | . . . Melee . | . . . Uniques/NPCs Destroyed . | . . . Combat | -11 -10 -10 -------- Run | Yrd Mat Sub Hostile Shots Fired 92 | . 48 44 Missed 21 | . 7 14 Damage Taken 1352 | . 541 811 Core 262 | . 92 170 Absorbed by Shields . | . . . Core Remaining (%) 100 | 100 . . Volleys Fired 91 | . 57 34 Largest 2 | . 2 2 Hottest 90 | . 40 90 Shots Fired 175 | . 114 61 Gun 168 | . 114 54 Cannon 7 | . . 7 Launcher . | . . . Special . | . . . Kinetic 166 | . 114 52 Thermal 9 | . . 9 Explosive . | . . . Electromagnetic . | . . . Robot Hit Streak 10 | . 10 9 Robot Miss Streak 3 | . 3 2 Penetration Max . | . . . Secondary Targets 1 | . . 1 Max Gunslinging Chain 1 | . . 1 Shots Hit Robots 112 | . 73 39 Core Hits 35 | . 22 13 Critical Kills . | . . . Critical Parts Destroyed . | . . . Critical Strikes . | . . . Melee Attacks 2 | . . 2 Impact 2 | . . 2 Slashing . | . . . Piercing . | . . . Sneak Attacks . | . . . Combat Hostiles . | . . . Follow-up Attacks . | . . . Damage Inflicted 1141 | . 584 557 Guns 1070 | . 584 486 Cannons 71 | . . 71 Explosions . | . . . Melee . | . . . Ramming . | . . . Kinetic 1070 | . 584 486 Thermal 71 | . . 71 Explosive . | . . . Electromagnetic . | . . . Impact . | . . . Slashing . | . . . Piercing . | . . . Highest Corruption . | . . . Average Corruption . | . . . Corruption Purged . | . . . Corruption Blocked . | . . . Overload Shots . | . . . Overflow Damage . | . . . Projectiles . | . . . Explosions . | . . . Melee . | . . . Knockbacks . | . . . Impact . | . . . Kinetic . | . . . Secondary . | . . . Self-Inflicted Damage . | . . . Shots . | . . . Rammed . | . . . Targets Rammed . | . . . Kicked . | . . . Crushed . | . . . Highest Temperature 77 | . 77 . Average Temperature 23 | . 23 . Received Heat Transfer 477 | . 327 150 Siege Activations . | . . . Robots Corrupted . | . . . Combat Hostiles . | . . . Parts Fried . | . . . Impact Corruptions . | . . . Robots Melted . | . . . Combat Hostiles . | . . . Parts Melted . | . . . Heat Transferred 148 | . . 148 Parts Sabotaged . | . . . Parts Stolen . | . . . Parts Stripped . | . . . Power Chain Reactions . | . . . Alert | -11 -10 -10 ------- Run | Yrd Mat Sub Peak Influence 192 | . 192 . Initial . | . . . Average 63 | . 69 . Maximum Alert Level . | . . . Low Security (%) 100 | 100 100 . Level 1 . | . . . Level 2 . | . . . Level 3 . | . . . Level 4 . | . . . Level 5 . | . . . High Security . | . . . Max Security . | . . . Squads Dispatched 3 | . 3 . Investigation 1 | . 1 . Extermination . | . . . Reinforcement 2 | . 2 . Assault . | . . . Garrison . | . . . Intercept . | . . . Searches Triggered . | . . . Construction Impeded . | . . . Haulers Reinforced . | . . . Active Scanning Responses . | . . . Cargo Convoy Interrupts . | . . . Stealth | -11 -10 -10 --------- Run | Yrd Mat Sub Distress Signals 1 | . 1 . Communications Jammed . | . . . Distress Signals . | . . . Times Spotted 22 | . 15 7 Peak Tracking Total 4 | . 4 2 Tactical Retreats 1 | . 1 . Traps | -11 -10 -10 ------- Run | Yrd Mat Sub Traps Triggered 2 | . 1 1 Indirectly . | . . . Trap Hack Attempts . | . . . Triggered . | . . . Disarmed . | . . . Reprogrammed . | . . . Reused . | . . . Traps Extracted . | . . . Installed . | . . . Triggered . | . . . Machines | -11 -10 -10 ---------- Run | Yrd Mat Sub Machines Disabled . | . . . Max in Single Turn . | . . . Machines Repaired . | . . . Machines Dismantled . | . . . Machines Sabotaged . | . . . Overloaded Fab Kills . | . . . Hacking | -11 -10 -10 --------- Run | Yrd Mat Sub Machines Accessed 4 | . 4 . Terminals 4 | . 4 . Fabricators . | . . . Repair Stations . | . . . Recycling Units . | . . . Scanalyzers . | . . . Garrison Access . | . . . Total Hacks 12 | . 12 . Successful 5 | . 5 . Failed 7 | . 7 . Catastrophic 2 | . 2 . Database Lockouts . | . . . Manual 2 | . 2 . Terminals 12 | . 12 . Fabricators . | . . . Repair Stations . | . . . Recycling Units . | . . . Scanalyzers . | . . . Garrison Access . | . . . Terminal Hacks 5 | . 5 . Alert Level 1 | . 1 . Locate Traps 2 | . 2 . Recall Reinforcements 1 | . 1 . Hauler Manifests 1 | . 1 . Fabricator Hacks . | . . . Repair Station Hacks . | . . . Recycling Unit Hacks . | . . . Scanalyzer . | . . . Garrison Access Hacks . | . . . Unauthorized Hacks . | . . . Terminals . | . . . Fabricators . | . . . Repair Stations . | . . . Recycling Units . | . . . Scanalyzers . | . . . Garrison Access . | . . . Data Cores Recovered . | . . . Used . | . . . Hacking Detections 4 | . 4 . Full Trace Events . | . . . Feedback Events . | . . . Feedback Blocked . | . . . Robot Schematics Acquired . | . . . Robots Built . | . . . Authchips . | . . . Time . | . . . Total Robot Build Rating . | . . . Part Schematics Acquired . | . . . Parts Built . | . . . Authchips . | . . . Time . | . . . Total Part Build Rating . | . . . Parts Repaired . | . . . Time . | . . . Parts Recycled . | . . . Recycled Matter . | . . . Retrieved Matter . | . . . Retrieved Components . | . . . Parts Scanalyzed . | . . . Part Schematics Acquired . | . . . Parts Damaged . | . . . Bothacking | -11 -10 -10 ------------ Run | Yrd Mat Sub Used RIF Installer . | . . . Robots Hacked . | . . . Non-combat . | . . . Combat . | . . . Robot Hacks Applied . | . . . Relay Couplers Released . | . . . Fabnet Peak Effective % . | . . . Robots Rewired . | . . . Allies Hacked . | . . . Hacks Repelled . | . . . Allies | -11 -10 -10 -------- Run | Yrd Mat Sub Total Allies . | . . . Largest Group . | . . . Highest-Rated Group . | . . . Highest-Rated Ally . | . . . Total Orders . | . . . Ally Attacks . | . . . Total Damage . | . . . Kills . | . . . Allies Corrupted . | . . . Allies Melted . | . . . Intel | -11 -10 -10 ------- Run | Yrd Mat Sub Robot Analysis Total . | . . . Derelict Logs Recovered . | . . . Drone Launches . | . . . Drone Recoveries . | . . . Exploration | -11 -10 -10 ------------- Run | Yrd Mat Sub Turns Passed 1402 | 75 795 532 Spaces Moved 672 | 54 407 211 Core 2 | 2 . . Treads 250 | . 61 189 Legs 398 | 52 346 . Wheels 22 | . . 22 Hover . | . . . Flight . | . . . Fastest Speed 50 | 50 120 120 Average Speed 135 | 117 125 158 Slowest Speed 240 | 120 160 240 Overloaded Moves . | . . . Propulsion Burnouts . | . . . Robots Hopped . | . . . Cave-ins Triggered . | . . . Exploration Rate (%) 26 | 5 65 9 Regions Visited 2 Branch Regions 1 Pre-discovered Areas 1 | . . 1 Known Exits Taken . | . . . Unknown Exits Taken 2 | 1 1 . Scrap Searched 3 | . . 3 Spaces Dug 2 | . . 2 Terrain Destroyed 2 | . . 2 Melee 2 | . . 2 Projectile . | . . . AOE . | . . . Terrain Rammed . | . . . Walls Destroyed . | . . . Machines Disabled . | . . . Actions | -11 -10 -10 --------- Run | Yrd Mat Sub Total 1010 | 62 601 347 Wait 186 | . 105 81 Move 670 | 53 406 211 Hop . | . . . Pick Up 16 | 3 7 6 Fast Attach 16 | 6 4 6 Attach 5 | . 3 2 Detach 4 | . 2 2 Swap 9 | . 7 2 Drop 11 | . 10 1 Fire 91 | . 57 34 Melee 2 | . . 2 Ram . | . . . Kick . | . . . Crush . | . . . Escape Stasis . | . . . Rewire . | . . . Trap . | . . . Miscellaneous . | . . . Route ------- -11/Scrapyard -10/Materials (discovered 3 exits: [*Mat] / [*Min] / [*Sub]) -10/Subcaves History --------- Turn | Location | Event 4 | -11/Scrapyard | Discovered new exit (range 16) 76 | -11/Scrapyard | Entered Materials 284 | -10/Materials | Discovered new exit (range 13) 317 | -10/Materials | Build established: Mutant 612 | -10/Materials | Discovered new exit (range 10) 845 | -10/Materials | Discovered new exit (range 3) 871 | -10/Materials | Entered Subcaves 964 | -10/Subcaves | Core integrity fell below 50% 979 | -10/Subcaves | Core integrity fell below 20% 996 | -10/Subcaves | Lost 5 parts (1p1n1u2w) 1136 | -10/Subcaves | Learned location of Zion (-6) 1136 | -10/Subcaves | Met a Zionite searching for "candidates" 1293 | -10/Subcaves | Build established: Scavenger-Mutant 1401 | -10/Subcaves | Ambushed by Subdweller buried in earth 1403 | -10/Subcaves | Destroyed by QY-SUO(R) with Subdweller Shrapnel Launcher Last Messages --------------- 01075_ Subatomizers dissect the Disposable Heat Sink. 01136_ OF-NLV(z): "Hey you! It's really dangerous down here, I feel that you could die at any moment. For your health and safety might I suggest a trip to Zion?" World map updated: -6/Zion. 01150_ OF-NLV(z) pulls a Mak. Spear out of the Twisted Machinery. 01151_ OG-C5S(R) destroyed. 01158_ OF-NLV(z) suffers critical hit (Destroy). 01158_ OF-NLV(z) destroyed. 01158_ Acquired Scrap Shield Fragment. 01167_ AW-792(R) destroyed. 01170_ Acquired Sub. Power Source. 01171_ Acquired 20 matter. 01177_ Dropped Lgt. Assault Rifle. 01178_ Acquired Mak. Power Source. 01281_ Triggered Shrapnel Trap. 01281_ An expanding cloud of shrapnel blasts out in all directions. 01281_ Sub. Machine Gun destroyed. 01402_ 69-I4E(R): "NAT20!" 01403_ Lgt. Treads destroyed. Map ----- +----------------------------------------------------+ | ?????# ##???????????????????????????????????????? | | ???### #????????????????????????????????????????? | | ??## #????????????????????????????????????????? | | ??#& #????????????????????????????????????????? | | ??#!& #????????????????????????????????????????? | | ?## & ##???????????????????? ???????????????????? | | ?#&&&* #????????????????????? #??????????????????? | | ?# %!###????????????????????? ??????????????????? | | ?## &###????????????????????? ??????????????????? | | ### ##???????????????????? ##?????????????????? | | # #???????????????????? #?????????????????? | | # #????????????????#### ????#?????????????? | | #????????????????? ##?? #?????????????? | | # ##???????????????? ## #?????????????? | | ## ##??????????????? ???????????????? | | ### ###############?# #?????????????????? | | ??## ## # ## # ### #?????????????????? | | ???### R"#?????????????????? | | ?????## ## # ### ! "#?????????????????? | | ??????# ###########?# %& "#????###??????????? | | ??????# ##??????????###; ! % [####### #??????????? | | ?????## #??????????# ##"# #??????????? | | ?????# #??????????# # "" #??????????? | | ????### ##??????????# R " #####????????? | | ??### #??????????# ### ## ????? | | ??# #???????????# @ ## ???? | | ??## # ##???????????# "" #?????????? | | ???# ###????????????# ""###?????????? | | ??## #??????????????# ; "" ##???????????? | | ??# #??????????????## # ; """ ##???????????? | | ??## #???????????????###?###""### ""###?????????? | | ??## #?????????????????????# "## """ #?????????? | | ??# #????????????????????# "## ## #?????????? | | ??## ##????????????????????##"### ## ##????????? | | ??# #??????????????????????# ### #" ""#????????? | | ??# ##????????????????????????# "" "#????????? | | ??## #????????????????????????## "##????????? | | ??# #?????????????????????#####^ "#?????????? | | ??# ##?????????????????????#" ^ ""#?????????? | | ??## #?????????????????????#"^ ""###?????????? | | ??# ##?????????????????????### ^^####???????????? | | ??## #???????????????????????#####??????????????? | | ???# ##?????????????????????????????????????????? | | ???# ##????????????????????????????????????????? | | ???# #????????????????????????????????????????? | | ???# ##????????????????????????????????????????? | | ??# #?????????????????????????????????????????? | | ??# #?????????????????????????????????????????? | | ??## ?????????????????????????????????????????? | | ???# ###????????????????????????????????????????? | +----------------------------------------------------+ Best States ------------- Heat Dissipation 35 Coolant Potential 50 Energy Generation 15 Energy Capacity 250 Matter Stores 300 Matter Capacity 300 Sight Range 16 Terrain Scan Density 10 Armor Coverage 150 Evasion (%) 55 Recoil Reduction 2 Item Schematics ----------------- None Robot Schematics ------------------ None Fabricated ------------ Nothing Alien Tech Used ----------------- None Achievements -------------- None Challenges ------------ None Game ------ Seed UltimateProjectionWell Manual? 0 Play Time 00:14:14 Cumulative 142.3 hours Start 2024.07.24 @ 12:51:27 End 2024.07.24 @ 13:05:24 Sessions 1 Manual Loads 0 Difficulty Rogue Special Mode None Game No. 45 Rogue 45 Adventurer 0 Explorer 0 Win Type - Total 1 Types 1/0/0/0/0/0/0/0/0 Lore% 55 Gallery% 62 Achievement% 46 Wizard Run 0 Options --------- Layout 0 ASCII 0 Keyboard 1 Movement Numpad Keybinds 0 Fullscreen 1 Font 18/X11Bold Map View 76x50 Zoom Use 0% Tactical HUD 1 Map Filters NONE Filters NONE Steam 1 RUN: 1b6e04c7-47e9-4ac4-a024-1f90f4457cc0